Cogmind - Beta 16.1 @@@ ROGUE MODE // 2026.02.16 @ 22:01:29 Player: UniqueName Result: Destroyed by JY-ZJH(R) with Subdweller Laser Performance ------------- Evolutions (0) 0 Regions Visited (3) 600 Robots Destroyed (11) 55 Value Destroyed (219) 219 Prototype IDs (0) 0 Alien Tech Used (0) 0 Bonus (-13) -13 TOTAL SCORE: 861 Bonus ------- Friendly Fire -13 Cogmind --------- Core Integrity 0/250 Matter 285/300 Energy 248/250 System Corruption 3% Temperature Cool (6) Movement Walking (190) Ox1 Location -10/Subcaves Parts ------- > --- POWER (1) -------- Ion Engine > --- PROPULSION (2) --- Aluminum Leg Aluminum Leg > --- UTILITY (2) ------ Large Storage Unit Weight Redist. System > --- WEAPON (2) ------- Small Laser Light Assault Rifle > --- INVENTORY (15) --- Light Nuclear Core Light Nuclear Core Aluminum Leg Aluminum Leg Aluminum Leg Aluminum Leg Aluminum Leg Subdweller Optics Scrap Shield Bomb Drone Bay Particle Gun Light Assault Rifle Peak State ------------ > --- POWER ------------ Light Ion Engine > --- PROPULSION ------- Light Treads Light Treads > --- UTILITY ---------- Large Storage Unit Weight Redist. System > --- WEAPON ----------- Medium Laser Light Assault Rifle > --- INVENTORY -------- Ion Engine Light Nuclear Core Light Nuclear Core Aluminum Leg Aluminum Leg Aluminum Leg Aluminum Leg Aluminum Leg Aluminum Leg Aluminum Leg Bomb Drone Bay Small Laser Particle Gun Light Assault Rifle [Rating: 11] Favorites ----------- Power Light Ion Engine Engine Light Ion Engine Propulsion Light Treads Treads Light Treads Leg Aluminum Leg Utility Large Storage Unit Device Weight Redist. System Storage Large Storage Unit Processor Transport Network Coupler Weapon Medium Laser Energy Gun Medium Laser Ballistic Gun Light Assault Rifle Build | -11 -10 -10 -10 ------- Run | Yrd Mat Min Sub Slots Evolved . | . . . . Power . | . . . . Propulsion . | . . . . Utility . | . . . . Weapon . | . . . . Parts Attached 19 | 6 5 4 4 Power 5 | 1 1 2 1 Engine 5 | 1 1 2 1 Core . | . . . . Reactor . | . . . . Propulsion 5 | 2 . 1 2 Treads 3 | 2 . 1 . Leg 2 | . . . 2 Wheel . | . . . . Hover . | . . . . Flight . | . . . . Utility 5 | 1 3 1 . Device 1 | . . 1 . Storage 3 | 1 2 . . Processor 1 | . 1 . . Hackware . | . . . . Protection . | . . . . Artifact . | . . . . Weapon 4 | 2 1 . 1 Energy Gun 3 | 2 . . 1 Energy Cannon . | . . . . Ballistic Gun 1 | . 1 . . Ballistic Cannon . | . . . . Launcher . | . . . . Special Weapon . | . . . . Impact Weapon . | . . . . Slashing Weapon . | . . . . Piercing Weapon . | . . . . Special Melee Weapon . | . . . . Unidentified Prototypes . | . . . . Parts Lost 3 | . 1 1 1 Power . | . . . . Propulsion . | . . . . Utility 1 | . . 1 . Weapon 2 | . 1 . 1 Highest Loss Streak 1 | . 1 1 1 To Critical Strikes . | . . . . Average Backups 11 | 2 7 13 13 Power 2 | . 1 2 2 Propulsion 5 | 1 3 7 5 Utility . | . . . 2 Weapon 2 | . 1 2 3 Tool/Special . | . . . . Unused Backups 12 | . . . 12 Power 2 | . . . 2 Propulsion 5 | . . . 5 Utility 3 | . . . 3 Weapon 2 | . . . 2 Tool/Special . | . . . . Average Slot Usage (%) 95 | . 97 93 97 Engine 14 | . 14 14 14 Treads 25 | . 28 28 2 Leg 2 | . . . 25 Device 6 | . . 7 14 Storage 14 | . 14 14 14 Processor 3 | . 11 . . Energy Gun 17 | . 26 14 13 Ballistic Gun 10 | . 1 14 12 Peak Build Rating 11 | 6 8 11 11 Average Rating 8 | 4 7 8 10 On Entrance 6 | . 6 8 11 Avg Prop Armor Cover (%) . | . . . . Naked Turns . | . . . . Heaviest Build 28 | 12 27 28 28 Greatest Support 46 | 40 40 46 46 Greatest Overweight (x) 1 | . . . 1 Average Overweight (x) . | . . . . Largest Inventory Capacity 15 | 8 15 15 15 Average Capacity 14 | 7 12 15 15 Most Carried 15 | 4 12 15 15 Average Carried 11 | 2 7 13 14 Final Capacity 15 | 8 15 15 15 Final Carried 15 | 4 12 15 14 Class Distribution -------------------- 57% | Mutant 42% | Scavenger-Mutant Dominant Class ---------------- Mutant | -10/Materials Scavenger-Mutant | -10/Mines Scavenger-Mutant | -10/Subcaves Resources | -11 -10 -10 -10 ----------- Run | Yrd Mat Min Sub Matter Collected 464 | 198 112 74 80 Remotely . | . . . . Salvage Created 450 | . 381 69 . Parts 29 | . 29 . . Haulers Intercepted 2 | . 2 . . Recyclers Shooed . | . . . . Parts Field Recycled . | . . . . Retrieved Matter . | . . . . Parts Self-Destructed 7 | . . . 7 Prevented . | . . . . Parts Restored . | . . . . Kills | -11 -10 -10 -10 ------- Run | Yrd Mat Min Sub Combat Hostiles Destroyed 15 | . 7 8 . Guns 14 | . 6 8 . AOE 1 | . 1 . . Classes Destroyed 6 | . 5 1 . Builder 1 | . 1 . . Tunneler 1 | . 1 . . Hauler 2 | . 2 . . Swarmer 2 | . 2 . . Grunt 5 | . 5 . . Assembled 8 | . . 8 . Best Kill Streak 4 | . 4 2 . Combat Bots Only 4 | . 4 2 . Max Kills in Single Turn 3 | . 3 2 . Gunslinging 1 | . . 1 . Exploded 1 | . 1 . . Melee . | . . . . Uniques/NPCs Destroyed . | . . . . Combat | -11 -10 -10 -10 -------- Run | Yrd Mat Min Sub Hostile Shots Fired 88 | . 36 22 30 Missed 26 | . 10 6 10 Hits 62 | . 26 16 20 Melee 1 | . . 1 . Projectile 61 | . 26 15 20 Damage Taken 1018 | . 350 235 433 Core 256 | . 70 60 126 Absorbed by Shields . | . . . . Core Remaining (%) 100 | 100 . . . Volleys Fired 61 | . 30 19 12 Largest 2 | . 2 2 2 Hottest 90 | . 90 70 70 Shots Fired 115 | . 52 41 22 Gun 115 | . 52 41 22 Cannon . | . . . . Launcher . | . . . . Special . | . . . . Kinetic 32 | . . 21 11 Thermal 61 | . 30 20 11 Explosive . | . . . . Electromagnetic 22 | . 22 . . Robot Hit Streak 16 | . 16 5 15 Robot Miss Streak 3 | . 2 3 3 Penetration Max . | . . . . Secondary Targets 3 | . 1 2 . Max Gunslinging Chain 1 | . 1 1 . Shots Hit Robots 78 | . 39 21 18 Core Hits 38 | . 17 15 6 Critical Kills . | . . . . Critical Parts Destroyed . | . . . . Critical Strikes 7 | . 4 2 1 Burn 7 | . 4 2 1 Melee Attacks . | . . . . Impact . | . . . . Slashing . | . . . . Piercing . | . . . . Sneak Attacks . | . . . . Combat Hostiles . | . . . . Follow-up Attacks . | . . . . Damage Inflicted 1050 | . 633 230 187 Guns 902 | . 485 230 187 Cannons . | . . . . Explosions 148 | . 148 . . Melee . | . . . . Ramming . | . . . . Kinetic 155 | . . 78 77 Thermal 682 | . 420 152 110 Explosive . | . . . . Electromagnetic 213 | . 213 . . Impact . | . . . . Slashing . | . . . . Piercing . | . . . . Highest Corruption 3 | . . 3 3 Average Corruption 3 | . . 3 3 Corruption Purged . | . . . . Corruption Blocked . | . . . . Effects 30 | . . 24 6 Message Errors 4 | . . 3 1 Matter Fused 7 | . . 6 1 Heat Flow Errors 4 | . . 4 . Energy Discharges 3 | . . 3 . Parts Rejected 1 | . . . 1 Data Loss (minor) 4 | . . 3 1 Data Loss (major) 2 | . . 2 . Misfires 4 | . . 3 1 Alerts 1 | . . . 1 Overload Shots . | . . . . Overflow Damage . | . . . . Projectiles . | . . . . Explosions . | . . . . Melee . | . . . . Knockbacks . | . . . . Impact . | . . . . Kinetic . | . . . . Secondary . | . . . . Self-Inflicted Damage 56 | . 56 . . Shots 1 | . 1 . . Rammed . | . . . . Targets Rammed . | . . . . Kicked . | . . . . Crushed . | . . . . Highest Temperature 252 | . 230 252 4 Average Temperature 69 | . 71 67 4 Received Heat Transfer 277 | . 144 40 93 Siege Activations . | . . . . Martial Activations . | . . . . Shielding Activations . | . . . . Robots Disrupted . | . . . . Combat Hostiles . | . . . . Robots Corrupted . | . . . . Combat Hostiles . | . . . . Parts Fried . | . . . . Impact Corruptions . | . . . . Robots Melted . | . . . . Combat Hostiles . | . . . . Parts Melted 5 | . 5 . . Heat Transferred 2235 | . 1260 592 383 Parts Sabotaged . | . . . . Parts Stolen . | . . . . Parts Stripped . | . . . . Power Chain Reactions 1 | . 1 . . Alert | -11 -10 -10 -10 ------- Run | Yrd Mat Min Sub Maximum Alert Level . | . . . . Low Security (%) 100 | 100 100 100 . Level 1 . | . . . . Level 2 . | . . . . Level 3 . | . . . . Level 4 . | . . . . Level 5 . | . . . . High Security . | . . . . Max Security . | . . . . Peak Influence 93 | . 93 24 . Initial 24 | . . 24 . Average 6 | . 20 . . Influence Increases 199 | . 199 . . Destroy 0b10 Robot/C 140 | . 140 . . Destroy 0b10 Robot/NC 20 | . 20 . . Destroy Leader 34 | . 34 . . Destroy Structure 5 | . 5 . . Influence Decreases 199 | . 136 63 . Entered New Map 39 | . . 39 . Time Decay 136 | . 126 10 . Lost Part 10 | . 10 . . Lost Ally 14 | . . 14 . Squads Dispatched 1 | . 1 . . Investigation 1 | . 1 . . Extermination . | . . . . Reinforcement . | . . . . Assault . | . . . . Garrison . | . . . . Intercept . | . . . . Searches Triggered . | . . . . Construction Impeded . | . . . . Haulers Reinforced . | . . . . Active Scanning Responses . | . . . . Cargo Convoy Interrupts . | . . . . Stealth | -11 -10 -10 -10 --------- Run | Yrd Mat Min Sub Distress Signals 1 | . 1 . . Communications Jammed . | . . . . Distress Signals . | . . . . Times Spotted 38 | . 11 15 12 Peak Tracking Total 8 | . 7 4 8 Tactical Retreats 2 | . . 2 . Traps | -11 -10 -10 -10 ------- Run | Yrd Mat Min Sub Traps Triggered 1 | . 1 . . Indirectly . | . . . . Trap Hack Attempts . | . . . . Triggered . | . . . . Disarmed . | . . . . Reprogrammed . | . . . . Reused . | . . . . Traps Extracted . | . . . . Installed . | . . . . Triggered . | . . . . Machines | -11 -10 -10 -10 ---------- Run | Yrd Mat Min Sub Machines Disabled . | . . . . Max in Single Turn . | . . . . Machines Repaired . | . . . . Machines Dismantled . | . . . . Machines Sabotaged . | . . . . Overloaded Fab Kills . | . . . . Hacking | -11 -10 -10 -10 --------- Run | Yrd Mat Min Sub Machines Accessed 4 | . 3 1 . Terminals 3 | . 3 . . Fabricators . | . . . . Repair Stations . | . . . . Recycling Units . | . . . . Scanalyzers . | . . . . Garrison Access . | . . . . Total Hacks 8 | . 7 1 . Successful 3 | . 2 1 . Failed 5 | . 5 . . Catastrophic 1 | . 1 . . Database Lockouts . | . . . . Manual . | . . . . Terminals 7 | . 7 . . Fabricators . | . . . . Repair Stations . | . . . . Recycling Units . | . . . . Scanalyzers . | . . . . Garrison Access . | . . . . Terminal Hacks 3 | . 2 1 . Open Door 1 | . . 1 . Alert Level 1 | . 1 . . Zone Layout 1 | . 1 . . Fabricator Hacks . | . . . . Repair Station Hacks . | . . . . Recycling Unit Hacks . | . . . . Scanalyzer . | . . . . Garrison Access Hacks . | . . . . Unauthorized Hacks . | . . . . Terminals . | . . . . Fabricators . | . . . . Repair Stations . | . . . . Recycling Units . | . . . . Scanalyzers . | . . . . Garrison Access . | . . . . Data Cores Recovered . | . . . . Used . | . . . . Hacking Detections 3 | . 3 . . Full Trace Events 1 | . 1 . . Feedback Events . | . . . . Feedback Blocked . | . . . . Robot Schematics Acquired . | . . . . Robots Built . | . . . . Authchips . | . . . . Time . | . . . . Total Robot Build Rating . | . . . . Part Schematics Acquired . | . . . . Parts Built . | . . . . Authchips . | . . . . Time . | . . . . Total Part Build Rating . | . . . . Part Studies Acquired . | . . . . Parts Repaired . | . . . . Time . | . . . . Parts Recycled . | . . . . Recycled Matter . | . . . . Retrieved Matter . | . . . . Retrieved Components . | . . . . Parts Scanalyzed . | . . . . Part Schematics Acquired . | . . . . Parts Damaged . | . . . . Bothacking | -11 -10 -10 -10 ------------ Run | Yrd Mat Min Sub Used RIF Installer . | . . . . Robots Hacked . | . . . . Non-combat . | . . . . Combat . | . . . . Robot Hacks Applied . | . . . . Relay Couplers Released . | . . . . Fabnet Peak Effective % . | . . . . Robots Rewired . | . . . . Allies Hacked . | . . . . Hacks Repelled . | . . . . Allies | -11 -10 -10 -10 -------- Run | Yrd Mat Min Sub Total Allies 3 | . . 3 . Largest Group 3 | . . 3 . Highest-Rated Group 40 | . . 40 . Highest-Rated Ally 16 | . . 16 . Total Orders . | . . . . Ally Attacks 10 | . . 10 . Total Damage 88 | . . 88 . Kills 3 | . . 3 . Allies Corrupted . | . . . . Allies Melted . | . . . . Intel | -11 -10 -10 -10 ------- Run | Yrd Mat Min Sub Active Infowar (turns) 569 | . 534 35 . T.N.C. 569 | . 534 35 . Robot Analysis Total . | . . . . Derelict Logs Recovered . | . . . . Drone Launches . | . . . . Drone Recoveries . | . . . . Exploration | -11 -10 -10 -10 ------------- Run | Yrd Mat Min Sub Turns Passed 2373 | 98 615 1447 213 Spaces Moved 1297 | 55 316 814 112 Core 2 | 2 . . . Treads 1189 | 53 316 814 6 Legs 106 | . . . 106 Wheels . | . . . . Hover . | . . . . Flight . | . . . . Fastest Speed 50 | 50 160 160 120 Average Speed 158 | 156 160 160 150 Slowest Speed 190 | 160 160 160 190 Overloaded Moves . | . . . . Propulsion Burnouts . | . . . . Robots Hopped . | . . . . Potential Cave-ins . | . . . . Cave-ins Triggered . | . . . . Exploration Rate (%) 39 | 3 40 99 15 Regions Visited 3 Branch Regions 2 Pre-discovered Areas . | . . . . Known Exits Taken . | . . . . Unknown Exits Taken 3 | 1 1 1 . Scrap Searched 2 | . . 2 . Spaces Dug . | . . . . Terrain Destroyed 4 | . 4 . . Melee . | . . . . Projectile . | . . . . AOE 4 | . 4 . . Terrain Rammed . | . . . . Walls Destroyed . | . . . . Machines Disabled . | . . . . Actions | -11 -10 -10 -10 --------- Run | Yrd Mat Min Sub Total 1502 | 64 373 926 139 Wait 96 | . 10 81 5 Move 1294 | 54 315 813 112 Hop . | . . . . Pick Up 21 | 4 10 5 2 Fast Attach 9 | 6 1 1 1 Attach 6 | . 1 2 3 Detach 1 | . . 1 . Swap 5 | . 3 1 1 Drop 9 | . 3 3 3 Fire 61 | . 30 19 12 Melee . | . . . . Ram . | . . . . Kick . | . . . . Crush . | . . . . Escape Stasis . | . . . . Rewire . | . . . . Trap . | . . . . Miscellaneous . | . . . . Route ------- -11/Scrapyard -10/Materials (discovered 3 exits: [*Mat] / *Min / [*Sub]) -10/Mines (discovered 3 exits: [*Mat x2] / [*Sub]) -10/Subcaves History --------- Turn | Location | Event 32 | -11/Scrapyard | Discovered new exit (range 15) 99 | -11/Scrapyard | Entered Materials 167 | -10/Materials | Discovered new exit (range 9) 314 | -10/Materials | Build established: Mutant 429 | -10/Materials | Discovered new exit (range 13) 695 | -10/Materials | Discovered new exit (range 8) 714 | -10/Materials | Entered Mines 715 | -10/Mines | Assembled infested the area 724 | -10/Mines | Assisted by bots powering up and referring to "LRC-V3" 800 | -10/Mines | Lost 3 allies 933 | -10/Mines | Core integrity fell below 50% 976 | -10/Mines | Discovered new exit (range 11) 1016 | -10/Mines | Discovered new exit (range 13) 1646 | -10/Mines | Build established: Scavenger-Mutant 1880 | -10/Mines | Found the Drone Emporium 1888 | -10/Mines | Found Prototype Device 2043 | -10/Mines | Discovered new exit (range 13) 2161 | -10/Mines | Entered Subcaves 2347 | -10/Subcaves | Ambushed by swarm of Subdwellers 2350 | -10/Subcaves | Ambushed by Subdwellers from Twisted Machinery 2359 | -10/Subcaves | Core integrity fell below 20% 2374 | -10/Subcaves | Destroyed by JY-ZJH(R) with Subdweller Laser Last Messages --------------- 02351_ 7S-B21(R) emerges from the Twisted Machinery. 02351_ HV Slug penetrates 0R-3B7(R). 02351_ 0R-3B7(R) suffers critical hit (Destroy). 02351_ 0R-3B7(R) destroyed. 02351_ HV Slug penetrates TH-N90(R). 02351_ TH-N90(R) suffers critical hit (Destroy). 02351_ TH-N90(R) destroyed. 02352_ OL-V32(R) emerges from the Twisted Machinery. 02352_ 65-W1N(R) emerges from the Twisted Machinery. 02354_ HV Slug penetrates Wall. 02356_ Med. Laser destroyed. 02356_ 65-W1N(R) suffers critical hit (Burn). 02357_ HV Slug penetrates AN-E4E(R). 02357_ AN-E4E(R) suffers critical hit (Destroy). 02357_ HV Slug penetrates Wall. 02358_ Acquired 40 matter. 02359_ OQ-4K4(g): "Sorry we're late! Had another grouchy Sub to deal with. Who's the new fellow?" 02366_ 2F-LRA(R) affixes Scrap Shield Fragment to Scrap Shield. 02369_ Subatomizers dissect the Sub. Power Source. Map ----- +----------------------------------------------------+ | ?????????????????????????????????????????????????? | | ?????????????????????????????????????????????????? | | ?????????????????????????????????????????????????? | | ?????????????????????????????????????????????????? | | ?????????????????????????????????????????????????? | | ?????????????????????????????????????????????????? | | ?????????????????????????????????????????????????? | | ?????????????????????????????????????????????????? | | ?????????????????????????????????????????????????? | | ?????????????????????????????????????????????????? | | ??????????????????????????????####???????????????? | | ?????????????????????????????? #######?????????? | | ?????????????????????????????? ###???????? | | ?????????????????????????????? #???????? | | ??????????????????????????????# #???????? | | ??????????????????????????????# ###?????? | | ?????????????????????????###### ?????? | | ?????????????????????????? ?????? | | ??????????????????????????# ## ???????? | | ????????????????" ??????### ## #??????????# | | ????????????????"" ######=## #?????###??# | | ????????????????"" "" R% & #????# ### | | ????????????????""" " RRR# % #???? | | ?????????????????##"# # *### #???? | | ??????????????????# #?### ##???? | | ??????????????????## @;#???##" ####?? | | ???????????????????## ##????## ##?# | | ????????????????????## #??????# ### | | ?????????????????????## ##??????# ## | | ?????????????????????# ????????# %&%& | | ?????????????????????## ????????## =! ## # | | ?????????????????????? ?????????## % #?### | | ?????????????????????## ??????????##### % % ### # | | ??????????????????????## ??????????????#" | | ???????????????????????#???????????????## | | ????????????????????????????????????????## | | ?????????????????????????????????????????# | | ?????????????????????????????????????????# % | | ????????????????????????????????????????# | | ???????????????????????????????????????# | | ???????????????????????????????????????# | | ???????????????????????????????????????#### ### | | ??????????????????????????????????????????# #?## | | ?????????????????????????????????????????# #??# | | ?????????????????????????????????????????## #??? | | ??????????????????????????????????????????# " #??? | | ??????????????????????????????????????????# "" ??? | | ??????????????????????????????????????????## " ??? | | ?????????????????????????????????????????????????? | | ?????????????????????????????????????????????????? | +----------------------------------------------------+ Best States ------------- Heat Dissipation 25 Energy Generation 10 Energy Capacity 250 Matter Stores 300 Matter Capacity 300 Sight Range 16 Terrain Scan Density 10 Additional Mass Support 6 Evasion (%) 55 Recoil Reduction 2 Item Schematics ----------------- None Robot Schematics ------------------ None Fabricated ------------ Nothing Repaired ---------- Nothing Studied --------- None Alien Tech Used ----------------- None Achievements -------------- I Survived The Infestation Challenges ------------ None Game ------ Seed SurgeZeronetPenetrator Manual? 0 Play Time 00:17:17 Cumulative 15.2 hours Start 2026.02.16 @ 21:45:05 End 2026.02.16 @ 22:01:29 Sessions 1 Manual Loads 0 Difficulty Rogue Special Mode None Game No. 17 Rogue 17 Adventurer 0 Explorer 0 Win Type - Total 0 Types 0/0/0/0/0/0/0/0/0/0 Lore% 11 Gallery% 20 Achievement% 17 Wizard Run 0 Options --------- Layout 0 ASCII 0 Keyboard 0 Movement Arrows Keybinds 0 Fullscreen 1 Font 18/SmallcapsGlow Map View 76x50 Zoom Use 0% Tactical HUD 1 Map Filters NONE Filters NONE Steam 1 RUN: 670e2a34-7fa6-429e-8391-26cdd6b406e0